[Event "Snabbschacks-SM 2025"]
[Site "Norrköping, Sweden"]
[Date "2025.09.27"]
[Round "5.6"]
[White "Malmsten, Hans"]
[Black "Olsson, Linus"]
[Result "0-1"]
[TimeControl "25 min + 10 sec/move"]
[BlackTitle "FM"]
[WhiteElo "2024"]
[BlackElo "2166"]

1. d4 {[%clk 00:25:17]} {[%emt 00:00:03]} Nf6 {[%clk 00:22:33]} {[%emt
00:02:46]} 2. g3 {[%clk 00:25:25]} {[%emt 00:00:02]} g6 {[%clk 00:22:10]}
{[%emt 00:00:34]} 3. Bg2 {[%clk 00:25:33]} {[%emt 00:00:01]} d5 {[%clk
00:22:18]} {[%emt 00:00:02]} 4. c4 {[%clk 00:25:37]} {[%emt 00:00:07]} c6
{[%clk 00:22:23]} {[%emt 00:00:05]} 5. Nf3 {[%clk 00:25:41]} {[%emt 00:00:05]}
Bg7 {[%clk 00:22:17]} {[%emt 00:00:16]} 6. O-O {[%clk 00:25:49]} {[%emt
00:00:02]} O-O {[%clk 00:22:21]} {[%emt 00:00:06]} 7. cxd5 {[%clk 00:25:58]}
{[%emt 00:00:02]} cxd5 {[%clk 00:22:28]} {[%emt 00:00:03]} 8. Ne5 {[%clk
00:26:06]} e6 {[%clk 00:21:24]} {[%emt 00:01:15]} 9. Nc3 {[%clk 00:25:52]}
{[%emt 00:00:24]} Nfd7 {[%clk 00:21:00]} {[%emt 00:00:34]} 10. f4 {[%clk
00:25:23]} {[%emt 00:00:39]} Nb6 {[%clk 00:19:24]} {[%emt 00:01:47]} 11. b3
{[%clk 00:24:40]} {[%emt 00:00:53]} f6 {[%clk 00:19:12]} {[%emt 00:00:22]} 12.
Nd3 {[%clk 00:23:58]} {[%emt 00:00:51]} Re8 {[%clk 00:18:26]} {[%emt 00:00:57]}
13. Bb2 {[%clk 00:23:30]} {[%emt 00:00:38]} Nc6 {[%clk 00:17:28]} {[%emt
00:01:08]} 14. e3 {[%clk 00:23:18]} {[%emt 00:00:21]} Bf8 {[%clk 00:14:38]}
{[%emt 00:03:01]} 15. a3 {[%clk 00:22:59]} {[%emt 00:00:29]} a6 {[%clk
00:14:26]} {[%emt 00:00:22]} 16. h3 {[%clk 00:22:45]} {[%emt 00:00:24]} Bd6
{[%clk 00:14:20]} {[%emt 00:00:16]} 17. g4 {[%clk 00:22:30]} {[%emt 00:00:25]}
Qe7 {[%clk 00:13:54]} {[%emt 00:00:36]} 18. e4 {[%clk 00:19:01]} {[%emt
00:03:38]} dxe4 {[%clk 00:12:43]} {[%emt 00:01:22]} 19. Nxe4 {[%clk 00:19:01]}
{[%emt 00:00:10]} Nd5 {[%clk 00:12:33]} {[%emt 00:00:19]} 20. Nxd6 {[%clk
00:17:39]} {[%emt 00:01:33]} Qxd6 {[%clk 00:12:40]} {[%emt 00:00:03]} 21. Qd2
{[%clk 00:16:27]} {[%emt 00:01:21]} b6 {[%clk 00:12:28]} {[%emt 00:00:23]} 22.
Rae1 {[%clk 00:15:38]} {[%emt 00:00:59]} Bb7 {[%clk 00:12:22]} {[%emt
00:00:16]} 23. b4 {[%clk 00:13:35]} {[%emt 00:02:13]} Rad8 {[%clk 00:11:32]}
{[%emt 00:01:00]} 24. Qf2 {[%clk 00:12:47]} {[%emt 00:00:58]} Rf8 {[%clk
00:08:49]} {[%emt 00:02:54]} 25. Re2 {[%clk 00:10:25]} {[%emt 00:02:31]} Rde8
{[%clk 00:08:49]} {[%emt 00:00:10]} 26. Rfe1 {[%clk 00:10:29]} {[%emt
00:00:05]} Re7 {[%clk 00:07:48]} {[%emt 00:01:11]} 27. f5 {[%clk 00:07:30]}
{[%emt 00:03:08]} exf5 {[%clk 00:04:52]} {[%emt 00:03:07]} 28. gxf5 {[%clk
00:03:54]} {[%emt 00:03:45]} Rg7 {[%clk 00:03:41]} {[%emt 00:01:22]} 29. Re6
{[%clk 00:02:48]} {[%emt 00:01:16]} Qd7 {[%clk 00:03:33]} {[%emt 00:00:17]} 30.
Kf1 {[%clk 00:02:23]} {[%emt 00:00:35]} Nd8 {[%clk 00:03:32]} {[%emt 00:00:12]}
31. R6e2 {[%clk 00:02:11]} {[%emt 00:00:22]} Qxf5 {[%clk 00:02:46]} {[%emt
00:00:56]} 32. Qxf5 {[%clk 00:01:42]} {[%emt 00:00:39]} gxf5 {[%clk 00:02:55]}
33. Bf3 {[%clk 00:01:22]} {[%emt 00:00:30]} Nf7 {[%clk 00:01:40]} {[%emt
00:01:25]} 34. Bc1 {[%clk 00:01:10]} {[%emt 00:00:22]} Ng5 {[%clk 00:01:43]}
{[%emt 00:00:07]} 35. Bg2 {[%clk 00:01:04]} {[%emt 00:00:16]} Kh8 {[%clk
00:01:21]} {[%emt 00:00:32]} 36. h4 {[%clk 00:01:01]} {[%emt 00:00:13]} Ne4
{[%clk 00:01:22]} {[%emt 00:00:10]} 37. Bxe4 {[%clk 00:00:45]} {[%emt
00:00:25]} fxe4 {[%clk 00:01:30]} {[%emt 00:00:02]} 38. Rxe4 {[%clk 00:00:49]}
{[%emt 00:00:05]} Rfg8 {[%clk 00:01:29]} {[%emt 00:00:11]} 39. Re8 {[%clk
00:00:34]} {[%emt 00:00:25]} Bc6 {[%clk 00:01:04]} {[%emt 00:00:35]} 40. Rxg8+
{[%clk 00:00:35]} {[%emt 00:00:09]} Rxg8 {[%clk 00:01:12]} {[%emt 00:00:02]} 41.
Re6 {[%clk 00:00:40]} {[%emt 00:00:05]} Bb5 {[%clk 00:01:18]} {[%emt 00:00:05]}
42. Ke2 {[%clk 00:00:31]} {[%emt 00:00:18]} Rg2+ {[%clk 00:00:21]} {[%emt
00:01:07]} 43. Kf3 {[%clk 00:00:33]} {[%emt 00:00:07]} Rg1 {[%clk 00:00:19]}
{[%emt 00:00:13]} 44. Bh6 {[%clk 00:00:21]} {[%emt 00:00:21]} Bxd3 {[%clk
00:00:26]} {[%emt 00:00:04]} 45. Re8+ {[%clk 00:00:27]} {[%emt 00:00:03]} Rg8
{[%clk 00:00:35]} {[%emt 00:00:02]} 46. Re6 {[%clk 00:00:27]} {[%emt 00:00:10]}
Bg6 {[%clk 00:00:34]} {[%emt 00:00:11]} 47. Rd6 {[%clk 00:00:34]} {[%emt
00:00:03]} Re8 {[%clk 00:00:36]} {[%emt 00:00:08]} 48. Kf2 {[%clk 00:00:36]}
{[%emt 00:00:08]} Be4 {[%clk 00:00:43]} {[%emt 00:00:03]} 49. Rd7 {[%clk
00:00:37]} {[%emt 00:00:09]} Ne7 {[%clk 00:00:41]} {[%emt 00:00:11]} 50. Ra7
{[%clk 00:00:40]} {[%emt 00:00:08]} Nf5 {[%clk 00:00:45]} {[%emt 00:00:06]} 51.
Bf4 {[%clk 00:00:43]} {[%emt 00:00:07]} Bd3 {[%clk 00:00:51]} {[%emt 00:00:04]}
52. d5 {[%clk 00:00:47]} {[%emt 00:00:06]} Re7 {[%clk 00:00:47]} {[%emt
00:00:13]} 53. Rxe7 {[%emt 00:00:47]} Nxe7 {[%clk 00:00:56]} {[%emt 00:00:01]}
54. d6 {[%clk 00:00:19]} {[%emt 00:00:02]} Nc6 {[%clk 00:01:01]} {[%emt
00:00:05]} 55. Ke3 {[%clk 00:00:26]} {[%emt 00:00:03]} Bf5 {[%clk 00:01:07]}
{[%emt 00:00:04]} 56. Bh6 {[%clk 00:00:30]} {[%emt 00:00:06]} Kg8 {[%clk
00:01:13]} {[%emt 00:00:04]} 57. Kf4 {[%clk 00:00:39]} {[%emt 00:00:01]} Be6
{[%clk 00:01:19]} {[%emt 00:00:03]} 58. Ke4 {[%clk 00:00:48]} {[%emt 00:00:02]}
Kf7 {[%clk 00:01:25]} {[%emt 00:00:04]} 59. Bf4 {[%clk 00:00:53]} {[%emt
00:00:05]} Ke8 {[%clk 00:01:29]} {[%emt 00:00:06]} 60. Bd2 {[%clk 00:00:56]}
{[%emt 00:00:07]} Kd7 {[%clk 00:01:36]} {[%emt 00:00:03]} 61. Bc3 {[%clk
00:01:05]} f5+ {[%clk 00:01:43]} {[%emt 00:00:03]} 62. Kf4 {[%clk 00:01:13]}
{[%emt 00:00:01]} Kxd6 {[%clk 00:01:41]} {[%emt 00:00:12]} 63. a4 {[%clk
00:01:22]} b5 {[%clk 00:01:42]} {[%emt 00:00:10]} 64. axb5 {[%clk 00:01:22]}
{[%emt 00:00:10]} axb5 {[%clk 00:01:50]} {[%emt 00:00:01]} 65. Ke3 {[%clk
00:01:28]} {[%emt 00:00:04]} Kd5 {[%clk 00:01:57]} {[%emt 00:00:04]} 66. Kd3
{[%clk 00:01:37]} f4 {[%clk 00:02:04]} {[%emt 00:00:03]} 67. Be1 {[%clk
00:01:41]} {[%emt 00:00:06]} Bf5+ {[%clk 00:02:12]} {[%emt 00:00:02]} 68. Kc3
{[%clk 00:01:49]} {[%emt 00:00:01]} Ke4 {[%clk 00:02:19]} {[%emt 00:00:03]} 69.
Kd2 {[%clk 00:01:58]} {[%emt 00:00:01]} Kf3 {[%clk 00:02:28]} {[%emt 00:00:02]}
70. h5 {[%clk 00:02:05]} {[%emt 00:00:03]} h6 {[%clk 00:02:19]} {[%emt
00:00:19]} 71. Bh4 {[%clk 00:02:10]} {[%emt 00:00:05]} Kg4 {[%clk 00:02:22]}
{[%emt 00:00:07]} 72. Bf6 {[%clk 00:02:18]} {[%emt 00:00:02]} Kxh5 {[%clk
00:02:29]} {[%emt 00:00:03]} 73. Ke2 {[%clk 00:02:26]} {[%emt 00:00:02]} Kg4
{[%clk 00:02:36]} {[%emt 00:00:02]} 74. Bc3 {[%clk 00:02:30]} {[%emt 00:00:06]}
Kg3 {[%clk 00:02:37]} {[%emt 00:00:10]} 75. Kf1 {[%clk 00:02:39]} h5 {[%clk
00:02:40]} {[%emt 00:00:07]} 76. Kg1 {[%clk 00:02:45]} {[%emt 00:00:05]} Kf3
{[%clk 00:02:41]} {[%emt 00:00:09]} 77. Be1 {[%clk 00:02:51]} {[%emt 00:00:05]}
Ke2 {[%clk 00:02:47]} {[%emt 00:00:03]} 78. Bh4 {[%clk 00:02:54]} {[%emt
00:00:06]} Nxb4 {[%clk 00:02:55]} {[%emt 00:00:03]} 0-1

[Event "Snabbschacks-SM 2025"]
[Site "Norrköping, Sweden"]
[Date "2025.09.27"]
[Round "2.5"]
[White "Grahn, Vidar"]
[Black "Malmsten, Hans"]
[Result "1-0"]
[TimeControl "25 min + 10 sec/move"]
[WhiteTitle "FM"]
[WhiteElo "2236"]
[BlackElo "2024"]

1. d4 {[%clk 00:25:18]} {[%emt 00:00:02]} Nf6 {[%clk 00:25:19]} {[%emt
00:00:01]} 2. c4 {[%clk 00:25:26]} {[%emt 00:00:01]} e5 {[%clk 00:25:24]}
{[%emt 00:00:05]} 3. dxe5 {[%clk 00:23:11]} {[%emt 00:02:26]} Ng4 {[%clk
00:25:32]} 4. Bf4 {[%clk 00:23:15]} {[%emt 00:00:06]} Bb4+ {[%clk 00:25:40]}
{[%emt 00:00:02]} 5. Nd2 {[%clk 00:22:47]} {[%emt 00:00:39]} d6 {[%clk
00:25:08]} {[%emt 00:00:41]} 6. exd6 {[%clk 00:22:15]} {[%emt 00:00:43]} Qf6
{[%clk 00:25:17]} {[%emt 00:00:01]} 7. e3 {[%clk 00:21:09]} {[%emt 00:01:16]}
Qxb2 {[%clk 00:25:21]} {[%emt 00:00:05]} 8. Ngf3 {[%clk 00:20:53]} {[%emt
00:00:26]} Bxd6 {[%clk 00:23:53]} {[%emt 00:01:38]} 9. Bxd6 {[%clk 00:20:47]}
{[%emt 00:00:16]} cxd6 {[%clk 00:24:02]} 10. Bd3 {[%clk 00:20:29]} {[%emt
00:00:29]} Nc6 {[%clk 00:21:43]} {[%emt 00:02:29]} 11. O-O {[%clk 00:20:26]}
{[%emt 00:00:13]} Nf6 {[%clk 00:21:20]} {[%emt 00:00:33]} 12. Ne4 {[%clk
00:19:25]} {[%emt 00:01:11]} Nxe4 {[%clk 00:20:11]} {[%emt 00:01:09]} 13. Bxe4
{[%clk 00:19:30]} {[%emt 00:00:06]} Qf6 {[%clk 00:20:24]} {[%emt 00:00:06]} 14.
Qd3 {[%clk 00:18:26]} {[%emt 00:01:12]} Bg4 {[%clk 00:19:19]} {[%emt 00:01:16]}
15. Bxc6+ {[%clk 00:18:05]} {[%emt 00:00:32]} bxc6 {[%clk 00:19:06]} {[%emt
00:00:23]} 16. Qe4+ {[%clk 00:18:13]} {[%emt 00:00:02]} Be6 {[%clk 00:18:18]}
{[%emt 00:00:58]} 17. Qxc6+ {[%clk 00:18:21]} {[%emt 00:00:03]} Ke7 {[%clk
00:18:24]} {[%emt 00:00:03]} 18. Rab1 {[%clk 00:17:24]} {[%emt 00:01:07]} Rad8
{[%clk 00:17:32]} {[%emt 00:01:02]} 19. Rb7+ {[%clk 00:16:43]} {[%emt
00:00:51]} Rd7 {[%clk 00:17:33]} {[%emt 00:00:09]} 20. Rd1 {[%clk 00:16:45]}
{[%emt 00:00:07]} Rxb7 {[%clk 00:12:31]} {[%emt 00:05:13]} 21. Qxb7+ {[%clk
00:16:48]} {[%emt 00:00:08]} Bd7 {[%clk 00:12:40]} 22. c5 {[%clk 00:16:22]}
{[%emt 00:00:36]} Rd8 {[%clk 00:11:45]} {[%emt 00:01:05]} 23. c6 {[%clk
00:16:12]} {[%emt 00:00:20]} 1-0

[ePGN "0.1;DGT LiveChess/2.2.7"]

[Event "Snabbschacks-SM 2025"]
[Site "Norrköping, Sweden"]
[Date "2025.09.27"]
[Round "4.1"]
[White "Grahn, Vidar"]
[Black "Carlsson, Ludvig"]
[Result "1-0"]
[TimeControl "25 min + 10 sec/move"]
[WhiteTitle "FM"]
[BlackTitle "IM"]
[WhiteElo "2236"]
[BlackElo "2389"]

1. Nf3 {[%clk 00:25:06]} {[%emt 00:00:13]} c5 {[%clk 00:24:55]} {[%emt
00:00:25]} 2. g3 {[%clk 00:24:57]} {[%emt 00:00:19]} Nc6 {[%clk 00:24:41]}
{[%emt 00:00:23]} 3. d4 {[%clk 00:24:13]} {[%emt 00:00:56]} cxd4 {[%clk
00:24:34]} {[%emt 00:00:16]} 4. Nxd4 {[%clk 00:24:20]} {[%emt 00:00:03]} h5
{[%clk 00:23:12]} {[%emt 00:01:31]} 5. Nc3 {[%clk 00:22:14]} {[%emt 00:02:17]}
h4 {[%clk 00:23:12]} {[%emt 00:00:10]} 6. Bf4 {[%clk 00:21:57]} {[%emt
00:00:28]} d6 {[%clk 00:22:18]} {[%emt 00:01:03]} 7. Nxc6 {[%clk 00:20:38]}
{[%emt 00:01:30]} bxc6 {[%clk 00:22:25]} {[%emt 00:00:02]} 8. Bg2 {[%clk
00:20:45]} {[%emt 00:00:03]} Bd7 {[%clk 00:21:58]} {[%emt 00:00:37]} 9. Qd2
{[%clk 00:19:59]} {[%emt 00:00:57]} Rb8 {[%clk 00:17:24]} {[%emt 00:04:43]} 10.
gxh4 {[%clk 00:15:27]} {[%emt 00:04:42]} Nf6 {[%clk 00:14:34]} {[%emt
00:03:00]} 11. b3 {[%clk 00:13:11]} {[%emt 00:02:27]} Rxh4 {[%clk 00:10:25]}
{[%emt 00:04:18]} 12. Bg5 {[%clk 00:13:19]} {[%emt 00:00:02]} Rh8 {[%clk
00:09:28]} {[%emt 00:01:07]} 13. O-O-O {[%clk 00:12:33]} {[%emt 00:00:56]} Qa5
{[%clk 00:09:35]} {[%emt 00:00:03]} 14. Kb1 {[%clk 00:11:58]} {[%emt 00:00:46]}
Ng4 {[%clk 00:09:27]} {[%emt 00:00:17]} 15. Be3 {[%clk 00:08:42]} {[%emt
00:03:26]} Nxe3 {[%clk 00:06:59]} {[%emt 00:02:37]} 16. Qxe3 {[%clk 00:08:44]}
{[%emt 00:00:09]} Qb6 {[%clk 00:06:58]} {[%emt 00:00:11]} 17. Qg3 {[%clk
00:07:46]} {[%emt 00:01:09]} g6 {[%clk 00:06:37]} {[%emt 00:00:30]} 18. e4
{[%clk 00:06:59]} {[%emt 00:00:57]} Bg7 {[%clk 00:06:37]} {[%emt 00:00:09]} 19.
f4 {[%clk 00:07:08]} {[%emt 00:00:02]} Qa5 {[%clk 00:04:59]} {[%emt 00:01:48]}
20. e5 {[%clk 00:06:54]} {[%emt 00:00:25]} Rh5 {[%clk 00:04:20]} {[%emt
00:00:48]} 21. Rhe1 {[%clk 00:06:28]} {[%emt 00:00:36]} Kf8 {[%clk 00:04:20]}
{[%emt 00:00:11]} 22. Ne4 {[%clk 00:05:20]} {[%emt 00:01:17]} dxe5 {[%clk
00:03:58]} {[%emt 00:00:32]} 23. Rxd7 {[%clk 00:05:15]} {[%emt 00:00:16]} exf4
{[%clk 00:04:06]} {[%emt 00:00:01]} 24. Qf2 {[%clk 00:05:15]} {[%emt 00:00:10]}
Qxa2+ {[%clk 00:03:22]} {[%emt 00:00:55]} 25. Kc1 {[%clk 00:05:04]} {[%emt
00:00:20]} Rxh2 {[%clk 00:02:27]} {[%emt 00:01:04]} 26. Red1 {[%clk 00:02:24]}
{[%emt 00:02:50]} Qa1+ {[%clk 00:01:22]} {[%emt 00:01:15]} 27. Kd2 {[%clk
00:02:33]} {[%emt 00:00:01]} Qa5+ {[%clk 00:01:27]} {[%emt 00:00:05]} 28. Ke2
{[%clk 00:02:15]} {[%emt 00:00:28]} Be5 {[%clk 00:01:25]} {[%emt 00:00:12]} 29.
Kf1 {[%clk 00:02:14]} {[%emt 00:00:11]} a6 {[%clk 00:01:05]} {[%emt 00:00:30]}
30. Nd2 {[%clk 00:01:16]} {[%emt 00:01:07]} Rh5 {[%clk 00:00:53]} {[%emt
00:00:23]} 31. Nc4 {[%clk 00:01:21]} {[%emt 00:00:06]} Qb5 {[%clk 00:01:01]} 32.
Bf3 {[%clk 00:01:11]} {[%emt 00:00:20]} Rg5 {[%clk 00:01:06]} {[%emt 00:00:05]}
33. Rd8+ {[%clk 00:01:10]} {[%emt 00:00:10]} Rxd8 {[%clk 00:01:05]} {[%emt
00:00:12]} 34. Rxd8+ {[%clk 00:01:19]} {[%emt 00:00:02]} Kg7 {[%clk 00:01:14]}
35. Qh2 {[%clk 00:01:28]} Kf6 {[%clk 00:01:19]} {[%emt 00:00:05]} 36. Qh8+
{[%clk 00:01:04]} {[%emt 00:00:33]} Ke6 {[%clk 00:01:28]} {[%emt 00:00:02]} 37.
Qe8 {[%clk 00:01:05]} {[%emt 00:00:09]} Rg3 {[%clk 00:01:22]} {[%emt 00:00:16]}
38. Bxc6 {[%clk 00:00:45]} {[%emt 00:00:30]} Qc5 {[%clk 00:01:27]} {[%emt
00:00:05]} 39. Bd7+ {[%clk 00:00:53]} {[%emt 00:00:03]} Kf6 {[%clk 00:00:47]}
{[%emt 00:00:49]} 40. Qh8+ {[%clk 00:01:01]} {[%emt 00:00:02]} Kg5 {[%clk
00:00:56]} {[%emt 00:00:01]} 41. Qxe5+ {[%clk 00:01:08]} {[%emt 00:00:03]} Qxe5
{[%clk 00:01:05]} {[%emt 00:00:01]} 42. Nxe5 {[%clk 00:01:17]} {[%emt
00:00:01]} Rc3 {[%clk 00:01:08]} {[%emt 00:00:07]} 43. Rc8 {[%clk 00:01:18]}
{[%emt 00:00:10]} Rxc8 {[%clk 00:01:14]} {[%emt 00:00:04]} 44. Bxc8 {[%clk
00:01:27]} {[%emt 00:00:01]} f6 {[%clk 00:01:17]} {[%emt 00:00:06]} 45. Nf3+
{[%clk 00:01:35]} {[%emt 00:00:03]} Kh5 {[%clk 00:01:26]} 46. Bxa6 {[%clk
00:01:42]} {[%emt 00:00:03]} g5 {[%clk 00:01:35]} 47. Bb5 {[%clk 00:01:31]}
{[%emt 00:00:22]} Kg4 {[%clk 00:01:41]} {[%emt 00:00:03]} 48. Kf2 {[%clk
00:01:36]} {[%emt 00:00:05]} e5 {[%clk 00:01:50]} {[%emt 00:00:02]} 49. Bd7+
{[%clk 00:01:45]} {[%emt 00:00:02]} Kh5 {[%clk 00:01:58]} {[%emt 00:00:02]} 50.
b4 {[%clk 00:01:44]} {[%emt 00:00:10]} e4 {[%clk 00:02:07]} 51. b5 {[%clk
00:01:51]} {[%emt 00:00:04]} g4 {[%clk 00:02:16]} 52. Bxg4+ {[%clk 00:01:52]}
{[%emt 00:00:09]} Kxg4 {[%clk 00:02:24]} {[%emt 00:00:02]} 53. b6 {[%clk
00:02:01]} 1-0

[Event "Snabbschacks-SM 2025"]
[Site "Norrköping, Sweden"]
[Date "2025.09.27"]
[Round "5.7"]
[White "Fors, Klas"]
[Black "Lilliehook, Victor"]
[Result "0-1"]
[TimeControl "25 min + 10 sec/move"]
[WhiteElo "2063"]
[BlackElo "2136"]

1. Nf3 {[%clk 00:25:17]} {[%emt 00:00:02]} d5 {[%clk 00:25:19]} {[%emt
00:00:02]} 2. c4 {[%clk 00:25:24]} {[%emt 00:00:03]} e6 {[%clk 00:25:27]}
{[%emt 00:00:03]} 3. g3 {[%clk 00:25:29]} {[%emt 00:00:05]} d4 {[%clk
00:25:36]} {[%emt 00:00:02]} 4. d3 {[%clk 00:25:23]} {[%emt 00:00:15]} c5
{[%clk 00:25:39]} {[%emt 00:00:07]} 5. Bg2 {[%clk 00:25:28]} {[%emt 00:00:04]}
Nc6 {[%clk 00:25:43]} {[%emt 00:00:06]} 6. O-O {[%clk 00:25:30]} {[%emt
00:00:08]} Nf6 {[%clk 00:25:25]} {[%emt 00:00:29]} 7. a3 {[%clk 00:23:09]}
{[%emt 00:02:32]} h6 {[%clk 00:24:50]} {[%emt 00:00:44]} 8. e3 {[%clk
00:23:02]} {[%emt 00:00:17]} a5 {[%clk 00:24:55]} {[%emt 00:00:05]} 9. exd4
{[%clk 00:22:54]} {[%emt 00:00:17]} cxd4 {[%clk 00:25:04]} {[%emt 00:00:02]} 10.
Re1 {[%clk 00:22:56]} {[%emt 00:00:08]} Bd6 {[%clk 00:25:03]} {[%emt 00:00:11]}
11. Nbd2 {[%clk 00:21:19]} {[%emt 00:01:47]} O-O {[%clk 00:25:06]} {[%emt
00:00:07]} 12. Rb1 {[%clk 00:19:37]} {[%emt 00:01:52]} Re8 {[%clk 00:23:33]}
{[%emt 00:01:43]} 13. Qc2 {[%clk 00:19:31]} {[%emt 00:00:16]} Nd7 {[%clk
00:18:50]} {[%emt 00:04:52]} 14. Ne4 {[%clk 00:12:42]} {[%emt 00:07:00]} Bf8
{[%clk 00:18:02]} {[%emt 00:00:58]} 15. c5 {[%clk 00:09:56]} {[%emt 00:02:56]}
a4 {[%clk 00:12:25]} {[%emt 00:05:47]} 16. Bd2 {[%clk 00:08:35]} {[%emt
00:01:30]} Ndb8 {[%clk 00:07:18]} {[%emt 00:05:17]} 17. Bb4 {[%clk 00:08:17]}
{[%emt 00:00:29]} Na6 {[%clk 00:07:16]} {[%emt 00:00:12]} 18. Qxa4 {[%clk
00:07:32]} {[%emt 00:00:55]} e5 {[%clk 00:04:18]} {[%emt 00:03:08]} 19. Qb5
{[%clk 00:04:18]} {[%emt 00:03:24]} Bd7 {[%clk 00:01:53]} {[%emt 00:02:36]} 20.
Qc4 {[%clk 00:03:12]} {[%emt 00:01:16]} Naxb4 {[%clk 00:01:18]} {[%emt
00:00:44]} 21. axb4 {[%clk 00:03:01]} {[%emt 00:00:21]} Ra4 {[%clk 00:01:11]}
{[%emt 00:00:16]} 22. Qd5 {[%clk 00:03:04]} {[%emt 00:00:08]} Nxb4 {[%clk
00:00:36]} {[%emt 00:00:45]} 23. Qb3 {[%clk 00:02:57]} {[%emt 00:00:17]} Qa5
{[%clk 00:00:20]} {[%emt 00:00:26]} 24. Rec1 {[%clk 00:02:24]} {[%emt
00:00:42]} Be6 {[%clk 00:00:17]} {[%emt 00:00:13]} 25. Qd1 {[%clk 00:02:33]}
{[%emt 00:00:01]} Na2 {[%clk 00:00:23]} {[%emt 00:00:04]} 26. b3 {[%clk
00:02:28]} {[%emt 00:00:15]} Ra3 {[%clk 00:00:13]} {[%emt 00:00:20]} 27. b4
{[%clk 00:02:15]} {[%emt 00:00:23]} Qa6 {[%clk 00:00:14]} {[%emt 00:00:09]} 28.
b5 {[%clk 00:02:18]} {[%emt 00:00:08]} Qa5 {[%clk 00:00:20]} {[%emt 00:00:03]}
29. Nxe5 {[%clk 00:01:21]} {[%emt 00:01:07]} Nxc1 {[%clk 00:00:26]} {[%emt
00:00:04]} 30. Qxc1 {[%clk 00:01:23]} {[%emt 00:00:08]} Ba2 {[%clk 00:00:17]}
{[%emt 00:00:19]} 31. Nc4 {[%clk 00:01:31]} {[%emt 00:00:02]} Bxc4 {[%clk
00:00:22]} {[%emt 00:00:05]} 32. Qxc4 {[%clk 00:01:49]} {[%emt 00:00:02]} Ra1
{[%clk 00:00:19]} {[%emt 00:00:24]} 33. Rxa1 {[%clk 00:01:50]} {[%emt
00:00:09]} Qxa1+ {[%clk 00:00:27]} {[%emt 00:00:02]} 34. Bf1 {[%clk 00:01:57]}
{[%emt 00:00:03]} Rc8 {[%clk 00:00:20]} {[%emt 00:00:17]} 35. Kg2 {[%clk
00:01:58]} {[%emt 00:00:09]} Bxc5 {[%clk 00:00:16]} {[%emt 00:00:14]} 36. Qd5
{[%clk 00:01:37]} {[%emt 00:00:31]} b6 {[%clk 00:00:19]} {[%emt 00:00:07]} 37.
Be2 {[%clk 00:01:41]} {[%emt 00:00:05]} Qa8 {[%clk 00:00:25]} {[%emt 00:00:05]}
38. Qd7 {[%clk 00:01:34]} {[%emt 00:00:16]} Rd8 {[%clk 00:00:20]} {[%emt
00:00:15]} 39. Qc7 {[%clk 00:01:40]} {[%emt 00:00:04]} f5 {[%clk 00:00:23]}
{[%emt 00:00:08]} 40. Bf3 {[%clk 00:01:29]} {[%emt 00:00:20]} fxe4 41. Bxe4
{[%clk 00:01:38]} Qc8 {[%clk 00:00:32]} {[%emt 00:00:10]} 42. Qe5 {[%clk
00:01:38]} {[%emt 00:00:09]} Re8 {[%clk 00:00:27]} {[%emt 00:00:16]} 43. Qd5+
{[%clk 00:01:32]} {[%emt 00:00:15]} Qe6 {[%clk 00:00:23]} {[%emt 00:00:14]} 44.
Qh5 {[%clk 00:01:38]} {[%emt 00:00:04]} Rd8 {[%clk 00:00:15]} {[%emt 00:00:17]}
45. f4 {[%clk 00:01:38]} {[%emt 00:00:10]} Be7 {[%clk 00:00:18]} {[%emt
00:00:07]} 46. g4 {[%clk 00:01:39]} Qf7 {[%clk 00:00:17]} {[%emt 00:00:20]} 47.
Qe5 {[%clk 00:01:39]} Bf6 {[%clk 00:00:18]} {[%emt 00:00:20]} 48. Qf5 {[%clk
00:01:45]} g6 {[%clk 00:00:23]} {[%emt 00:00:09]} 49. Qxg6+ {[%clk 00:01:49]}
Qxg6 {[%clk 00:00:32]} 50. Bxg6 {[%clk 00:01:49]} Rd5 {[%clk 00:00:28]} {[%emt
00:00:22]} 51. Be8 {[%clk 00:02:03]} Kf8 {[%clk 00:00:21]} {[%emt 00:00:22]} 52.
Bc6 {[%clk 00:02:05]} Rc5 {[%clk 00:00:30]} {[%emt 00:00:09]} 53. Kg3 {[%clk
00:02:10]} {[%emt 00:00:04]} Rc3 {[%clk 00:00:37]} {[%emt 00:00:04]} 54. Be4
{[%clk 00:02:14]} {[%emt 00:00:05]} Rb3 {[%clk 00:00:46]} 55. h4 {[%clk
00:02:20]} {[%emt 00:00:04]} Rxb5 {[%clk 00:00:49]} {[%emt 00:00:06]} 56. g5
{[%clk 00:02:28]} {[%emt 00:00:02]} hxg5 {[%clk 00:00:56]} {[%emt 00:00:04]} 57.
hxg5 {[%clk 00:02:36]} {[%emt 00:00:01]} Bg7 {[%clk 00:00:45]} {[%emt
00:00:21]} 58. Kg4 {[%clk 00:02:43]} {[%emt 00:00:04]} Rc5 {[%clk 00:00:47]}
{[%emt 00:00:08]} 59. Kh5 {[%clk 00:02:24]} {[%emt 00:00:29]} b5 {[%clk
00:00:48]} {[%emt 00:00:09]} 60. Kg6 {[%clk 00:02:30]} {[%emt 00:00:04]} b4
{[%clk 00:00:46]} {[%emt 00:00:12]} 61. f5 {[%clk 00:02:22]} {[%emt 00:00:17]}
b3 {[%clk 00:00:36]} {[%emt 00:00:21]} 62. f6 {[%clk 00:02:25]} {[%emt
00:00:06]} Rxg5+ {[%clk 00:00:31]} {[%emt 00:00:15]} 0-1